Workbook

Sheet All. 9 - RIEPILOGO PER UGBTEP
A1: Anno | B1: CAPITOLO DI SPESA | C1: DETERMINA N. DEL | D1: CIG | E1: OGGETTO DEL CONTRATTO | F1: PERIODO CONTRATTUALE (DAL ...….… AL……....) | H1: IMPORTO A BASE D'ASTA | I1: AMMONTARE INCENTIVO PER SINGOLO CONTRATTO (2% -1,90%) | J1: 0.8 | K1: 0.2 | L1: quota 80% RELATIVA ALL'UFFICIO che ha predisposto l'allegato 10 (es. UUCR, SPI, … ALTRO) anno in corso | M1: quota 80% RELATIVA ALL'UFFICIO che ha predisposto l'allegato 10 (es. UUCR, SPI, … ALTRO) anno in corso | N1: Tipo incarico | O1: importo unitario liquidato | P1: percentuale di ripartizione dell'incentivo in base al tipo di incarico svolto | Q1: QUOTA LIQUIDATA NEL 2019 | R1: QUOTA LIQUIDATA NEL 2020 | S1: QUOTA LIQUIDATA NEL 2021 | T1: 2023 | U1: 2024 | V1: 2025 | W1: 2026
A2: 2022 | B2: 1273 | C2: 20 del 08/02/2022 | D2: 909156117B | E2: contratto a consumo con la società Eltime s.r.l. per forniture di beni e servizi complementari al funzionamento del sistema di gestione presenze | F2: 2022-02-08 | G2: 2022-12-31 | H2: 48000 | I2: =+H2*0.02 -> 960 | J2: =+I2*0.8 -> 768 | K2: =+I2*0.2 -> 192 | L2: =+M2 -> 238.08 | M2: =+O2+O3+O4+O5 -> 238.08 | N2: Inc. Pred. Doc | O2: =+J2*P2 -> 38.4 | P2: 0.05
A3: 2022 | B3: 1273 | C3: 20 del 08/02/2022 | D3: 909156117B | E3: contratto a consumo con la società Eltime s.r.l. per forniture di beni e servizi complementari al funzionamento del sistema di gestione presenze | F3: 2022-02-08 | G3: 2022-12-31 | H3: 48000 | I3: 960 | J3: 768 | K3: 192 | N3: Coll. Inc. Pred. Doc | O3: =+J3*P3 -> 76.8 | P3: 0.1
A4: 2022 | B4: 1273 | C4: 20 del 08/02/2022 | D4: 909156117B | E4: contratto a consumo con la società Eltime s.r.l. per forniture di beni e servizi complementari al funzionamento del sistema di gestione presenze | F4: 2022-02-08 | G4: 2022-12-31 | H4: 48000 | I4: 960 | J4: 768 | K4: 192 | N4: RUP Affidamento | O4: =+J4*P4 -> 76.8 | P4: 0.1
A5: 2022 | B5: 1273 | C5: 20 del 08/02/2022 | D5: 909156117B | E5: contratto a consumo con la società Eltime s.r.l. per forniture di beni e servizi complementari al funzionamento del sistema di gestione presenze | F5: 2022-02-08 | G5: 2022-12-31 | H5: 48000 | I5: 960 | J5: 768 | K5: 192 | N5: Coll RUP Aff. | O5: =+J5*P5 -> 46.08 | P5: 0.06
A6: 2022 | B6: 1273 | C6: 110 DEL 07/07/2022 | D6: ZF7371275E | E6: affidamento della fornitura di materiale di facile consumo | H6: 8500 | I6: 170 | J6: 136 | K6: 34 | L6: =+M6 -> 42.16 | M6: =+O6+O7+O8+O9 -> 42.16 | N6: Inc. Pred. Doc | O6: =+J6*P6 -> 6.8 | P6: 0.05
A7: 2022 | B7: 1273 | C7: 110 DEL 07/07/2022 | D7: ZF7371275E | E7: affidamento della fornitura di materiale di facile consumo | H7: 8500 | I7: 170 | J7: 136 | K7: 34 | N7: Coll. Inc. Pred. Doc | O7: =+J7*P7 -> 13.6 | P7: 0.1
A8: 2022 | B8: 1273 | C8: 110 DEL 07/07/2022 | D8: ZF7371275E | E8: affidamento della fornitura di materiale di facile consumo | H8: 8500 | I8: 170 | J8: 136 | K8: 34 | N8: RUP Affidamento | O8: =+J8*P8 -> 13.6 | P8: 0.1
A9: 2022 | B9: 1273 | C9: 110 DEL 07/07/2022 | D9: ZF7371275E | E9: affidamento della fornitura di materiale di facile consumo | H9: 8500 | I9: 170 | J9: 136 | K9: 34 | N9: Coll RUP Aff. | O9: =+J9*P9 -> 8.16 | P9: 0.06
A10: 2022 | B10: 1273 | C10: 12 del 26/01/2022 | D10: 907998617D | E10: fornitura di licenze Azure Microsoft | F10: 2022-01-28 | G10: 2023-06-30 | H10: 382773.87 | I10: =+H10*1.9/100 -> 7272.70353 | J10: 5818.162824 | K10: 1454.540706 | L10: =+M10 -> 1803.630475 | M10: =+O10+O11+O12+O13 -> 1803.630475 | N10: Inc. Pred. Doc | O10: =+J10*P10 -> 290.9081412 | P10: 0.05
A11: 2022 | B11: 1273 | C11: 12 del 26/01/2022 | D11: 907998617D | E11: fornitura di licenze Azure Microsoft | F11: 2022-01-28 | G11: 2023-06-30 | H11: 382773.87 | I11: =+H11*1.9/100 -> 7272.70353 | J11: 5818.162824 | K11: 1454.540706 | N11: Coll. Inc. Pred. Doc | O11: =+J11*P11 -> 581.8162824 | P11: 0.1
A12: 2022 | B12: 1273 | C12: 12 del 26/01/2022 | D12: 907998617D | E12: fornitura di licenze Azure Microsoft | F12: 2022-01-28 | G12: 2023-06-30 | H12: 382773.87 | I12: =+H12*1.9/100 -> 7272.70353 | J12: 5818.162824 | K12: 1454.540706 | N12: RUP Affidamento | O12: =+J12*P12 -> 581.8162824 | P12: 0.1
A13: 2022 | B13: 1273 | C13: 12 del 26/01/2022 | D13: 907998617D | E13: fornitura di licenze Azure Microsoft | F13: 2022-01-28 | G13: 2023-06-30 | H13: 382773.87 | I13: =+H13*1.9/100 -> 7272.70353 | J13: 5818.162824 | K13: 1454.540706 | N13: Coll RUP Aff. | O13: =+J13*P13 -> 349.0897694 | P13: 0.06
A14: 2022 | B14: 1273 | C14: 161 DEL 24/10/2022 | D14: 944165180 | E14: Affidamento Servizi di Supporto “Microsoft Services Unified Enterprise Support” (2022-2023) | F14: 2022-10-09 | G14: 2023-10-08 | H14: 75000 | I14: =+H14*0.02 -> 1500 | J14: 1200 | K14: 300 | L14: =+M14 -> 372 | M14: =+O14+O15+O16+O17 -> 372 | N14: Inc. Pred. Doc. | O14: =+J14*P14 -> 60 | P14: 0.05
A15: 2022 | B15: 1273 | C15: 161 DEL 24/10/2022 | D15: 944165180 | E15: Affidamento Servizi di Supporto “Microsoft Services Unified Enterprise Support” (2022-2023) | F15: 2022-10-09 | G15: 2023-10-08 | H15: 75000 | I15: =+H15*0.02 -> 1500 | J15: 1200 | K15: 300 | N15: Coll. Inc. Pred. Doc. | O15: =+J15*P15 -> 120 | P15: 0.1
A16: 2022 | B16: 1273 | C16: 161 DEL 24/10/2022 | D16: 944165180 | E16: Affidamento Servizi di Supporto “Microsoft Services Unified Enterprise Support” (2022-2023) | F16: 2022-10-09 | G16: 2023-10-08 | H16: 75000 | I16: =+H16*0.02 -> 1500 | J16: 1200 | K16: 300 | N16: RUP Affidamento | O16: =+J16*P16 -> 120 | P16: 0.1
A17: 2022 | B17: 1273 | C17: 161 DEL 24/10/2022 | D17: 944165180 | E17: Affidamento Servizi di Supporto “Microsoft Services Unified Enterprise Support” (2022-2023) | F17: 2022-10-09 | G17: 2023-10-08 | H17: 75000 | I17: =+H17*0.02 -> 1500 | J17: 1200 | K17: 300 | N17: Coll RUP Aff. | O17: =+J17*P17 -> 72 | P17: 0.06
A18: 2022 | B18: 1273 | C18: 93 DEL 15/06/2022 | D18: Z7836D0682 | E18: acquisto di un pacchetto di giornate di supporto a consumo per assicurare il Servizio di Help Desk | H18: 19467 | I18: =+H18*2/100 -> 389.34 | J18: 311.472 | K18: 77.868 | L18: =+M18 -> 96.55632 | M18: =+O18+O19+O20+O21 -> 96.55632 | N18: Inc. Pred. Doc | O18: =+J18*P18 -> 15.5736 | P18: 0.05
A19: 2022 | B19: 1273 | C19: 93 DEL 15/06/2022 | D19: Z7836D0682 | E19: acquisto di un pacchetto di giornate di supporto a consumo per assicurare il Servizio di Help Desk | H19: 19467 | I19: =+H19*2/100 -> 389.34 | J19: 311.472 | K19: 77.868 | N19: Coll. Inc. Pred. Doc | O19: =+J19*P19 -> 31.1472 | P19: 0.1
A20: 2022 | B20: 1273 | C20: 93 DEL 15/06/2022 | D20: Z7836D0682 | E20: acquisto di un pacchetto di giornate di supporto a consumo per assicurare il Servizio di Help Desk | H20: 19467 | I20: =+H20*2/100 -> 389.34 | J20: 311.472 | K20: 77.868 | N20: RUP Affidamento | O20: =+J20*P20 -> 31.1472 | P20: 0.1
A21: 2022 | B21: 1273 | C21: 93 DEL 15/06/2022 | D21: Z7836D0682 | E21: acquisto di un pacchetto di giornate di supporto a consumo per assicurare il Servizio di Help Desk | H21: 19467 | I21: =+H21*2/100 -> 389.34 | J21: 311.472 | K21: 77.868 | N21: Coll RUP Aff. | O21: =+J21*P21 -> 18.68832 | P21: 0.06
A22: 2022 | B22: 1273 | C22: 77 DEL 23/05/2022 | D22: 9241280182 | E22: fornitura e posa in opera di un sistema di videoconferenza per due sale di Palazzo Aldobrandini | H22: 40791 | I22: =+H22*0.02 -> 815.82 | J22: 652.656 | K22: 163.164 | L22: =+M22 -> 202.32336 | M22: =+O22+O23+O24+O25+O26 -> 202.32336 | N22: Inc. Pred. Doc | O22: =+J22*P22 -> 32.6328 | P22: 0.05
A23: 2022 | B23: 1273 | C23: 77 DEL 23/05/2022 | D23: 9241280182 | E23: fornitura e posa in opera di un sistema di videoconferenza per due sale di Palazzo Aldobrandini | H23: 40791 | I23: 815.82 | J23: 652.656 | K23: 163.164 | N23: Coll. Inc. Pred. Doc | O23: =+J23*P23 -> 42.42264 | P23: 0.065
A24: 2022 | B24: 1273 | C24: 77 DEL 23/05/2022 | D24: 9241280182 | E24: fornitura e posa in opera di un sistema di videoconferenza per due sale di Palazzo Aldobrandini | H24: 40791 | I24: 815.82 | J24: 652.656 | K24: 163.164 | N24: Coll. Inc. Pred. Doc | O24: =+J24*P24 -> 22.84296 | P24: 0.035
A25: 2022 | B25: 1273 | C25: 77 DEL 23/05/2022 | D25: 9241280182 | E25: fornitura e posa in opera di un sistema di videoconferenza per due sale di Palazzo Aldobrandini | H25: 40791 | I25: 815.82 | J25: 652.656 | K25: 163.164 | N25: RUP Affidamento | O25: =+J25*P25 -> 65.2656 | P25: 0.1
A26: 2022 | B26: 1273 | C26: 77 DEL 23/05/2022 | D26: 9241280182 | E26: fornitura e posa in opera di un sistema di videoconferenza per due sale di Palazzo Aldobrandini | H26: 40791 | I26: 815.82 | J26: 652.656 | K26: 163.164 | N26: Coll RUP Aff. | O26: =+J26*P26 -> 39.15936 | P26: 0.06
A27: 2022 | B27: 1273 | C27: 164 DEL 18/10/2022 | D27: 945043165E | E27: affidamento della fornitura dei servizi di streaming | H27: 74250 | I27: 1485 | J27: 1188 | K27: 297 | L27: =+M27 -> 368.28 | M27: =+O27+O29+O30+O31+O28 -> 368.28 | N27: Inc. Pred. Doc | O27: =+J27*P27 -> 59.4 | P27: 0.05
A28: 2022 | B28: 1273 | C28: 164 DEL 18/10/2022 | D28: 945043165E | E28: affidamento della fornitura dei servizi di streaming | H28: 74250 | I28: 1485 | J28: 1188 | K28: 297 | N28: Coll. Inc. Pred. Doc | O28: =+J28*P28 -> 77.22 | P28: 0.065
A29: 2022 | B29: 1273 | C29: 164 DEL 18/10/2022 | D29: 945043165E | E29: affidamento della fornitura dei servizi di streaming | H29: 74250 | I29: 1485 | J29: 1188 | K29: 297 | N29: Coll. Inc. Pred. Doc | O29: =+J29*P29 -> 41.58 | P29: 0.035
A30: 2022 | B30: 1273 | C30: 164 DEL 18/10/2022 | D30: 945043165E | E30: affidamento della fornitura dei servizi di streaming | H30: 74250 | I30: 1485 | J30: 1188 | K30: 297 | N30: RUP Affidamento | O30: =+J30*P30 -> 118.8 | P30: 0.1
A31: 2022 | B31: 1273 | C31: 164 DEL 18/10/2022 | D31: 945043165E | E31: affidamento della fornitura dei servizi di streaming | H31: 74250 | I31: 1485 | J31: 1188 | K31: 297 | N31: Coll RUP Aff. | O31: =+J31*P31 -> 71.28 | P31: 0.06
A32: 2022 | B32: 1273 | C32: 216 del 30/12/2022 | D32: 9581583C6A | E32: adesione alla Convenzione Consip Telefonia edizione 8, dei servizi di Telefonia Mobile per le Pubbliche Amministrazioni | F32: 2022-12-30 | G32: 2023-12-29 | H32: 75000 | I32: =+H32*2/100 -> 1500 | J32: 1200 | K32: 300 | L32: =+M32 -> 168 | M32: =+O32+O33+O34+O35 -> 168 | N32: Inc. Pred. Doc. | O32: =+J32*P32 -> 24 | P32: 0.02
A33: 2022 | B33: 1273 | C33: 216 del 30/12/2022 | D33: 9581583C6A | E33: adesione alla Convenzione Consip Telefonia edizione 8, dei servizi di Telefonia Mobile per le Pubbliche Amministrazioni | F33: 2022-12-30 | G33: 2023-12-29 | H33: 75000 | I33: 1500 | J33: 1200 | K33: =+I33*0.2 -> 300 | N33: Coll. Inc. Pred. Doc. | O33: =+J33*P33 -> 12 | P33: 0.01
A34: 2022 | B34: 1273 | C34: 216 del 30/12/2022 | D34: 9581583C6A | E34: adesione alla Convenzione Consip Telefonia edizione 8, dei servizi di Telefonia Mobile per le Pubbliche Amministrazioni | F34: 2022-12-30 | G34: 2023-12-29 | H34: 75000 | I34: 1500 | J34: =+I34*0.8 -> 1200 | K34: 300 | N34: RUP Affidamento | O34: =+J34*P34 -> 96 | P34: 0.08
A35: 2022 | B35: 1273 | C35: 216 del 30/12/2022 | D35: 9581583C6A | E35: adesione alla Convenzione Consip Telefonia edizione 8, dei servizi di Telefonia Mobile per le Pubbliche Amministrazioni | F35: 2022-12-30 | G35: 2023-12-29 | H35: 75000 | I35: 1500 | J35: 1200 | K35: 300 | N35: Coll RUP Aff. | O35: =+J35*P35 -> 36 | P35: 0.03
A36: 2022 | B36: 1273 | C36: 198 del 05/12/2022 | D36: 9529082F37 | E36: Affidamento del servizio di consultazione di Banche dati giuridiche “Foroplus” – La Tribuna - | H36: 50000 | I36: 1000 | J36: 800 | K36: =+I36*0.2 -> 200 | L36: =+M36 -> 248 | M36: =+O36+O37+O38+O39 -> 248 | N36: Inc. Pred. Doc | O36: =+J36*P36 -> 40 | P36: 0.05
A37: 2022 | B37: 1273 | C37: 198 del 05/12/2022 | D37: 9529082F37 | E37: Affidamento del servizio di consultazione di Banche dati giuridiche “Foroplus” – La Tribuna - | H37: 50000 | I37: 1000 | J37: 800 | K37: =+I37*0.2 -> 200 | N37: Coll. Inc. Pred. Doc | O37: =+J37*P37 -> 80 | P37: 0.1
A38: 2022 | B38: 1273 | C38: 198 del 05/12/2022 | D38: 9529082F37 | E38: Affidamento del servizio di consultazione di Banche dati giuridiche “Foroplus” – La Tribuna - | H38: 50000 | I38: 1000 | J38: 800 | K38: =+I38*0.2 -> 200 | N38: RUP Affidamento | O38: =+J38*P38 -> 80 | P38: 0.1
A39: 2022 | B39: 1273 | C39: 198 del 05/12/2022 | D39: 9529082F37 | E39: Affidamento del servizio di consultazione di Banche dati giuridiche “Foroplus” – La Tribuna - | H39: 50000 | I39: 1000 | J39: 800 | K39: =+I39*0.2 -> 200 | N39: Coll RUP Aff. | O39: =+J39*P39 -> 48 | P39: 0.06
A40: 2022 | B40: 1273 | C40: 18 del 07/02/2022 | D40: ZB6351AFF7 | E40: acquisto/rinnovo licenze utili al corretto funzionamento del Sistema | H40: 2940 | I40: 58.8 | J40: 47.04 | K40: 11.76 | L40: =+M40 -> 14.5824 | M40: =+O40+O41+O42+O43 -> 14.5824 | N40: Inc. Pred. Doc | O40: =+J40*P40 -> 2.352 | P40: 0.05
A41: 2022 | B41: 1273 | C41: 18 del 07/02/2022 | D41: ZB6351AFF7 | E41: acquisto/rinnovo licenze utili al corretto funzionamento del Sistema | H41: 2940 | I41: 58.8 | J41: 47.04 | K41: =+I41*0.2 -> 11.76 | N41: Coll. Inc. Pred. Doc | O41: =+J41*P41 -> 4.704 | P41: 0.1
A42: 2022 | B42: 1273 | C42: 18 del 07/02/2022 | D42: ZB6351AFF7 | E42: acquisto/rinnovo licenze utili al corretto funzionamento del Sistema | H42: 2940 | I42: 58.8 | J42: 47.04 | K42: 11.76 | N42: RUP Affidamento | O42: =+J42*P42 -> 4.704 | P42: 0.1
A43: 2022 | B43: 1273 | C43: 18 del 07/02/2022 | D43: ZB6351AFF7 | E43: acquisto/rinnovo licenze utili al corretto funzionamento del Sistema | H43: 2940 | I43: 58.8 | J43: 47.04 | K43: 11.76 | N43: Coll RUP Aff. | O43: =+J43*P43 -> 2.8224 | P43: 0.06
A44: 2022 | B44: 1273 | C44: 41 del 11/03/2022 | D44: 9133554F2F | E44: Affidamento dei servizi triennali di manutenzione e assistenza tecnica in scadenza per lo chassis e i server blade DELL in esercizio presso il CED della G.A. e associati servizi professionali per una durata complessiva di 36 mesi | H44: 60000 | I44: =+H44*0.02 -> 1200 | J44: 960 | K44: 240 | L44: =+M44 -> 297.6 | M44: =+O44+O46+O47+O48+O45 -> 297.6 | N44: Inc. Pred. Doc | O44: =+J44*P44 -> 48 | P44: 0.05
A45: 2022 | B45: 1273 | C45: 41 del 11/03/2022 | D45: 9133554F2F | E45: Affidamento dei servizi triennali di manutenzione e assistenza tecnica in scadenza per lo chassis e i server blade DELL in esercizio presso il CED della G.A. e associati servizi professionali per una durata complessiva di 36 mesi | H45: 60000 | I45: =+H45*0.02 -> 1200 | J45: 960 | K45: 240 | N45: Coll. Inc. Pred. Doc | O45: =+J45*P45 -> 62.4 | P45: 0.065
A46: 2022 | B46: 1273 | C46: 41 del 11/03/2022 | D46: 9133554F2F | E46: Affidamento dei servizi triennali di manutenzione e assistenza tecnica in scadenza per lo chassis e i server blade DELL in esercizio presso il CED della G.A. e associati servizi professionali per una durata complessiva di 36 mesi | H46: 60000 | I46: 1200 | J46: 960 | K46: 240 | N46: Coll. Inc. Pred. Doc | O46: =+J46*P46 -> 33.6 | P46: 0.035
A47: 2022 | B47: 1273 | C47: 41 del 11/03/2022 | D47: 9133554F2F | E47: Affidamento dei servizi triennali di manutenzione e assistenza tecnica in scadenza per lo chassis e i server blade DELL in esercizio presso il CED della G.A. e associati servizi professionali per una durata complessiva di 36 mesi | H47: 60000 | I47: 1200 | J47: 960 | K47: 240 | N47: RUP Affidamento | O47: =+J47*P47 -> 96 | P47: 0.1
A48: 2022 | B48: 1273 | C48: 41 del 11/03/2022 | D48: 9133554F2F | E48: Affidamento dei servizi triennali di manutenzione e assistenza tecnica in scadenza per lo chassis e i server blade DELL in esercizio presso il CED della G.A. e associati servizi professionali per una durata complessiva di 36 mesi | H48: 60000 | I48: 1200 | J48: 960 | K48: 240 | N48: Coll RUP Aff. | O48: =+J48*P48 -> 57.6 | P48: 0.06
A49: 2022 | B49: 1273 | C49: 11 DEL 25/01/2022 | D49: Z8934E9B4E | E49: affidamento del supporto del sistema multimediale Bosch Dicentis installato in sala Pompeo presso Palazzo Spada | H49: 24400 | I49: 488 | J49: 390.4 | K49: 97.6 | L49: =+M49 -> 121.024 | M49: =+O49+O50+O51+O52+O53 -> 121.024 | N49: Inc. Pred. Doc | O49: =+J49*P49 -> 19.52 | P49: 0.05
A50: 2022 | B50: 1273 | C50: 11 DEL 25/01/2022 | D50: Z8934E9B4E | E50: affidamento del supporto del sistema multimediale Bosch Dicentis installato in sala Pompeo presso Palazzo Spada | H50: 24400 | I50: 488 | J50: 390.4 | K50: 97.6 | N50: Coll. Inc. Pred. Doc | O50: =+J50*P50 -> 25.376 | P50: 0.065
A51: 2022 | B51: 1273 | C51: 11 DEL 25/01/2022 | D51: Z8934E9B4E | E51: affidamento del supporto del sistema multimediale Bosch Dicentis installato in sala Pompeo presso Palazzo Spada | H51: 24400 | I51: 488 | J51: 390.4 | K51: 97.6 | N51: Coll. Inc. Pred. Doc | O51: =+J51*P51 -> 13.664 | P51: 0.035
A52: 2022 | B52: 1273 | C52: 11 DEL 25/01/2022 | D52: Z8934E9B4E | E52: affidamento del supporto del sistema multimediale Bosch Dicentis installato in sala Pompeo presso Palazzo Spada | H52: 24400 | I52: 488 | J52: 390.4 | K52: 97.6 | N52: RUP Affidamento | O52: =+J52*P52 -> 39.04 | P52: 0.1
A53: 2022 | B53: 1273 | C53: 11 DEL 25/01/2022 | D53: Z8934E9B4E | E53: affidamento del supporto del sistema multimediale Bosch Dicentis installato in sala Pompeo presso Palazzo Spada | H53: 24400 | I53: 488 | J53: 390.4 | K53: 97.6 | N53: Coll RUP Aff. | O53: =+J53*P53 -> 23.424 | P53: 0.06
A54: 2022 | B54: 1273 | C54: 51 DEL 12/04/2022 | D54: 9182040B1A | E54: manutenzione e assistenza tecnica NetApp | H54: 200000 | I54: 4000 | J54: 3200 | K54: 800 | L54: =+M54 -> 992 | M54: =+O54+O55+O56+O57+O58 -> 992 | N54: Inc. Pred. Doc | O54: =+J54*P54 -> 160 | P54: 0.05
A55: 2022 | B55: 1273 | C55: 51 DEL 12/04/2022 | D55: 9182040B1A | E55: manutenzione e assistenza tecnica NetApp | H55: 200000 | I55: 4000 | J55: 3200 | K55: 800 | N55: Coll. Inc. Pred. Doc | O55: =+J55*P55 -> 208 | P55: 0.065
A56: 2022 | B56: 1273 | C56: 51 DEL 12/04/2022 | D56: 9182040B1A | E56: manutenzione e assistenza tecnica NetApp | H56: 200000 | I56: 4000 | J56: 3200 | K56: 800 | N56: Coll. Inc. Pred. Doc | O56: =+J56*P56 -> 112 | P56: 0.035
A57: 2022 | B57: 1273 | C57: 51 DEL 12/04/2022 | D57: 9182040B1A | E57: manutenzione e assistenza tecnica NetApp | H57: 200000 | I57: 4000 | J57: 3200 | K57: 800 | N57: RUP Affidamento | O57: =+J57*P57 -> 320 | P57: 0.1
A58: 2022 | B58: 1273 | C58: 51 DEL 12/04/2022 | D58: 9182040B1A | E58: manutenzione e assistenza tecnica NetApp | H58: 200000 | I58: 4000 | J58: 3200 | K58: 800 | N58: Coll RUP Aff. | O58: =+J58*P58 -> 192 | P58: 0.06
A59: 2021 | B59: 1273 | C59: Determina n. 191 del 29/12/2021 | D59: 9049432387 | E59: acquisizione pacchetto Qlik (licenze software e supporto specialistico) | F59: 2022-02-11 | G59: 2023-02-10 | H59: 57323 | I59: =+H59*2/100 -> 1146.46 | J59: =+I59*0.8 -> 917.168 | K59: =+I59*0.2 -> 229.292 | L59: =+M59 -> 284.32208 | M59: =+O59+O60+O61+O62 -> 284.32208 | N59: Inc. Pred. Doc | O59: =+J59*P59 -> 45.8584 | P59: 0.05
A60: 2021 | B60: 1273 | C60: Determina n. 191 del 29/12/2021 | D60: 9049432387 | E60: acquisizione pacchetto Qlik (licenze software e supporto specialistico) | F60: 2022-02-11 | G60: 2023-02-10 | H60: 57323 | I60: 1146.46 | J60: 917.168 | K60: 229.292 | N60: Coll. Inc. Pred. Doc | O60: =+J60*P60 -> 91.7168 | P60: 0.1
A61: 2021 | B61: 1273 | C61: Determina n. 191 del 29/12/2021 | D61: 9049432387 | E61: acquisizione pacchetto Qlik (licenze software e supporto specialistico) | F61: 2022-02-11 | G61: 2023-02-10 | H61: 57323 | I61: 1146.46 | J61: 917.168 | K61: 229.292 | N61: RUP Affidamento | O61: =+J61*P61 -> 91.7168 | P61: 0.1
A62: 2021 | B62: 1273 | C62: Determina n. 191 del 29/12/2021 | D62: 9049432387 | E62: acquisizione pacchetto Qlik (licenze software e supporto specialistico) | F62: 2022-02-11 | G62: 2023-02-10 | H62: 57323 | I62: 1146.46 | J62: 917.168 | K62: 229.292 | N62: Coll RUP Aff. | O62: =+J62*P62 -> 55.03008 | P62: 0.06
A63: 2022 | B63: 1273 | C63: n. 90 del 09/06/2022 | D63: Z50367EB8C | E63: affidamento della fornitura del materiale di facile consumo | H63: 20000 | I63: 400 | J63: 320 | K63: 80 | L63: =+M63 -> 99.2 | M63: =+O63+O64+O66+O67+O65 -> 99.2 | N63: Inc. Pred. Doc | O63: =+J63*P63 -> 16 | P63: 0.05
A64: 2022 | B64: 1273 | C64: n. 90 del 09/06/2022 | D64: Z50367EB8C | E64: affidamento della fornitura del materiale di facile consumo | H64: 20000 | I64: =+H64*2/100 -> 400 | J64: =+I64*0.8 -> 320 | K64: =+I64*0.2 -> 80 | N64: Coll. Inc. Pred. Doc | O64: =+J64*P64 -> 20.8 | P64: 0.065
A65: 2022 | B65: 1273 | C65: n. 90 del 09/06/2022 | D65: Z50367EB8C | E65: affidamento della fornitura del materiale di facile consumo | H65: 20000 | I65: 400 | J65: 320 | K65: 80 | N65: Coll. Inc. Pred. Doc | O65: =+J65*P65 -> 11.2 | P65: 0.035
A66: 2022 | B66: 1273 | C66: n. 90 del 09/06/2022 | D66: Z50367EB8C | E66: affidamento della fornitura del materiale di facile consumo | H66: 20000 | I66: 400 | J66: 320 | K66: 80 | N66: RUP Affidamento | O66: =+J66*P66 -> 32 | P66: 0.1
A67: 2022 | B67: 1273 | C67: n. 90 del 09/06/2022 | D67: Z50367EB8C | E67: affidamento della fornitura del materiale di facile consumo | H67: 20000 | I67: 400 | J67: 320 | K67: 80 | N67: Coll RUP Aff. | O67: =+J67*P67 -> 19.2 | P67: 0.06
A68: 2022 | B68: 1273 | C68: Determina n. 36 del 02/03/2022 | D68: 9123536415 | E68: fornitura e rinnovo di licenze d'uso del software di backup Commvault | F68: 2022-05-19 | G68: 2023-05-18 | H68: 200000 | I68: 4000 | J68: 3200 | K68: 800 | L68: =+M68 -> 992 | M68: =+O68+O69+O71+O72+O70 -> 992 | N68: Inc. Pred. Doc | O68: =+J68*P68 -> 160 | P68: 0.05
A69: 2022 | B69: 1273 | C69: Determina n. 36 del 02/03/2022 | D69: 9123536415 | E69: fornitura e rinnovo di licenze d'uso del software di backup Commvault | F69: 2022-05-19 | G69: 2023-05-18 | H69: 200000 | I69: 4000 | J69: 3200 | K69: 800 | N69: Coll. Inc. Pred. Doc | O69: =+J69*P69 -> 208 | P69: 0.065
A70: 2022 | B70: 1273 | C70: Determina n. 36 del 02/03/2022 | D70: 9123536415 | E70: fornitura e rinnovo di licenze d'uso del software di backup Commvault | F70: 2022-05-19 | G70: 2023-05-18 | H70: 200000 | I70: 4000 | J70: 3200 | K70: 800 | N70: Coll. Inc. Pred. Doc | O70: =+J70*P70 -> 112 | P70: 0.035
A71: 2022 | B71: 1273 | C71: Determina n. 36 del 02/03/2022 | D71: 9123536415 | E71: fornitura e rinnovo di licenze d'uso del software di backup Commvault | F71: 2022-05-19 | G71: 2023-05-18 | H71: 200000 | I71: 4000 | J71: 3200 | K71: 800 | N71: RUP Affidamento | O71: =+J71*P71 -> 320 | P71: 0.1
A72: 2022 | B72: 1273 | C72: Determina n. 36 del 02/03/2022 | D72: 9123536415 | E72: fornitura e rinnovo di licenze d'uso del software di backup Commvault | F72: 2022-05-19 | G72: 2023-05-18 | H72: 200000 | I72: 4000 | J72: 3200 | K72: 800 | N72: Coll RUP Aff. | O72: =+J72*P72 -> 192 | P72: 0.06
A73: 2022 | B73: 1273 | C73: Determina n. 56 del 13/04/2022 | D73: 9186169A76 | E73: servizio di consulenza progettuale a consumo per prodotti Oracle | F73: 2022-04-28 | G73: 2023-04-27 | H73: 98000 | I73: 1960 | J73: 1568 | K73: 392 | L73: =+M73 -> 486.08 | M73: =+O73+O74+O75+O76+O77 -> 486.08 | N73: Inc. Pred. Doc | O73: =+J73*P73 -> 78.4 | P73: 0.05
A74: 2022 | B74: 1273 | C74: Determina n. 56 del 13/04/2022 | D74: 9186169A76 | E74: servizio di consulenza progettuale a consumo per prodotti Oracle | F74: 2022-04-28 | G74: 2023-04-27 | H74: 98000 | I74: 1960 | J74: 1568 | K74: 392 | N74: Coll. Inc. Pred. Doc | O74: =+J74*P74 -> 101.92 | P74: 0.065
A75: 2022 | B75: 1273 | C75: Determina n. 56 del 13/04/2022 | D75: 9186169A76 | E75: servizio di consulenza progettuale a consumo per prodotti Oracle | F75: 2022-04-28 | G75: 2023-04-27 | H75: 98000 | I75: 1960 | J75: 1568 | K75: 392 | N75: Coll. Inc. Pred. Doc | O75: =+J75*P75 -> 54.88 | P75: 0.035
A76: 2022 | B76: 1273 | C76: Determina n. 56 del 13/04/2022 | D76: 9186169A76 | E76: servizio di consulenza progettuale a consumo per prodotti Oracle | F76: 2022-04-28 | G76: 2023-04-27 | H76: 98000 | I76: 1960 | J76: 1568 | K76: 392 | N76: RUP Affidamento | O76: =+J76*P76 -> 156.8 | P76: 0.1
A77: 2022 | B77: 1273 | C77: Determina n. 56 del 13/04/2022 | D77: 9186169A76 | E77: servizio di consulenza progettuale a consumo per prodotti Oracle | F77: 2022-04-28 | G77: 2023-04-27 | H77: 98000 | I77: 1960 | J77: 1568 | K77: 392 | N77: Coll RUP Aff. | O77: =+J77*P77 -> 94.08 | P77: 0.06
A78: 2022 | B78: 1273 | C78: Determina n. 91 del 13/06/2022 | D78: 927328198F | E78: fornitura di crediti Azure Monetary Commit M11Y2022-M6Y2023 | F78: 2022-07-04 | G78: 2022-07-01 | H78: 499908.24 | I78: =+H78*1.9/100 -> 9498.25656 | J78: 7598.605248 | K78: 1899.651312 | L78: =+M78 -> 2355.567627 | M78: =+O78+O79+O80+O82+O81 -> 2355.567627 | N78: Inc. Pred. Doc | O78: =+J78*P78 -> 379.9302624 | P78: 0.05
A79: 2022 | B79: 1273 | C79: Determina n. 91 del 13/06/2022 | D79: 927328198F | E79: fornitura di crediti Azure Monetary Commit M11Y2022-M6Y2023 | F79: 2022-07-04 | G79: 2022-07-01 | H79: 499908.24 | I79: =+H79*1.9/100 -> 9498.25656 | J79: 7598.605248 | K79: 1899.651312 | N79: Coll. Inc. Pred. Doc | O79: =+J79*P79 -> 493.9093411 | P79: 0.065
A80: 2022 | B80: 1273 | C80: Determina n. 91 del 13/06/2022 | D80: 927328198F | E80: fornitura di crediti Azure Monetary Commit M11Y2022-M6Y2023 | F80: 2022-07-04 | G80: 2022-07-01 | H80: 499908.24 | I80: =+H80*1.9/100 -> 9498.25656 | J80: 7598.605248 | K80: 1899.651312 | N80: Coll. Inc. Pred. Doc | O80: =+J80*P80 -> 265.9511837 | P80: 0.035
A81: 2022 | B81: 1273 | C81: Determina n. 91 del 13/06/2022 | D81: 927328198F | E81: fornitura di crediti Azure Monetary Commit M11Y2022-M6Y2023 | F81: 2022-07-04 | G81: 2022-07-01 | H81: 499908.24 | I81: =+H81*1.9/100 -> 9498.25656 | J81: 7598.605248 | K81: 1899.651312 | N81: RUP Affidamento | O81: =+J81*P81 -> 759.8605248 | P81: 0.1
A82: 2022 | B82: 1273 | C82: Determina n. 91 del 13/06/2022 | D82: 927328198F | E82: fornitura di crediti Azure Monetary Commit M11Y2022-M6Y2023 | F82: 2022-07-04 | G82: 2022-07-01 | H82: 499908.24 | I82: =+H82*1.9/100 -> 9498.25656 | J82: 7598.605248 | K82: 1899.651312 | N82: Coll RUP Aff. | O82: =+J82*P82 -> 455.9163149 | P82: 0.06
A83: 2022 | B83: 1273 | C83: Determina n. 146 del 19/09/2022 | D83: ZCF37CC136 | E83: fornitura di n. 20 licenze software Nuance - Dragon Professional 15 Individual | F83: 2022-10-02 | G83: 2022-10-02 | H83: 7200 | I83: =+H83*2/100 -> 144 | J83: 115.2 | K83: 28.8 | L83: =+M83 -> 35.712 | M83: =+O83+O84+O85+O86 -> 35.712 | N83: Inc. Pred. Doc | O83: =+J83*P83 -> 11.52 | P83: 0.1
A84: 2022 | B84: 1273 | C84: Determina n. 146 del 19/09/2022 | D84: ZCF37CC136 | E84: fornitura di n. 20 licenze software Nuance - Dragon Professional 15 Individual | F84: 2022-10-02 | G84: 2022-10-02 | H84: 7200 | I84: 144 | J84: 115.2 | K84: 28.8 | N84: Coll. Inc. Pred. Doc | O84: =+J84*P84 -> 11.52 | P84: 0.1
A85: 2022 | B85: 1273 | C85: Determina n. 146 del 19/09/2022 | D85: ZCF37CC136 | E85: fornitura di n. 20 licenze software Nuance - Dragon Professional 15 Individual | F85: 2022-10-02 | G85: 2022-10-02 | H85: 7200 | I85: 144 | J85: 115.2 | K85: 28.8 | N85: RUP Affidamento | O85: =+J85*P85 -> 6.912 | P85: 0.06
A86: 2022 | B86: 1273 | C86: Determina n. 146 del 19/09/2022 | D86: ZCF37CC136 | E86: fornitura di n. 20 licenze software Nuance - Dragon Professional 15 Individual | F86: 2022-10-02 | G86: 2022-10-02 | H86: 7200 | I86: 144 | J86: 115.2 | K86: 28.8 | N86: Coll RUP Aff. | O86: =+J86*P86 -> 5.76 | P86: 0.05
A87: 2022 | B87: 1273 | C87: Determina n. 173 del 02/11/2022 | D87: 9471647A5C | E87: supporto tecnico specialistico di manutenzione ordinaria relativo alle licenze Oracle | F87: 2022-11-28 | G87: 2023-11-27 | H87: 184897.84 | I87: 3697.9568 | J87: 2958.36544 | K87: 739.59136 | L87: =+M87 -> 917.0932864 | M87: =+O87+O88+O89+O90+O91 -> 917.0932864 | N87: Inc. Pred. Doc | O87: =+J87*P87 -> 147.918272 | P87: 0.05
A88: 2022 | B88: 1273 | C88: Determina n. 173 del 02/11/2022 | D88: 9471647A5C | E88: supporto tecnico specialistico di manutenzione ordinaria relativo alle licenze Oracle | F88: 2022-11-28 | G88: 2023-11-27 | H88: 184897.84 | I88: 3697.9568 | J88: 2958.36544 | K88: 739.59136 | N88: Coll. Inc. Pred. Doc | O88: =+J88*P88 -> 192.2937536 | P88: 0.065
A89: 2022 | B89: 1273 | C89: Determina n. 173 del 02/11/2022 | D89: 9471647A5C | E89: supporto tecnico specialistico di manutenzione ordinaria relativo alle licenze Oracle | F89: 2022-11-28 | G89: 2023-11-27 | H89: 184897.84 | I89: 3697.9568 | J89: 2958.36544 | K89: 739.59136 | N89: Coll. Inc. Pred. Doc | O89: =+J89*P89 -> 103.5427904 | P89: 0.035
A90: 2022 | B90: 1273 | C90: Determina n. 173 del 02/11/2022 | D90: 9471647A5C | E90: supporto tecnico specialistico di manutenzione ordinaria relativo alle licenze Oracle | F90: 2022-11-28 | G90: 2023-11-27 | H90: 184897.84 | I90: 3697.9568 | J90: 2958.36544 | K90: 739.59136 | N90: RUP Affidamento | O90: =+J90*P90 -> 295.836544 | P90: 0.1
A91: 2022 | B91: 1273 | C91: Determina n. 173 del 02/11/2022 | D91: 9471647A5C | E91: supporto tecnico specialistico di manutenzione ordinaria relativo alle licenze Oracle | F91: 2022-11-28 | G91: 2023-11-27 | H91: 184897.84 | I91: 3697.9568 | J91: 2958.36544 | K91: 739.59136 | N91: Coll RUP Aff. | O91: =+J91*P91 -> 177.5019264 | P91: 0.06
A92: 2022 | B92: 1273 | C92: Determina n. 60 del 20/04/2022 | D92: 919446153E | E92: servizio di supporto specialistico tecnico per le licenze Oracle | F92: 2022-05-06 | G92: 2023-05-05 | H92: 153171.31 | I92: 3063.4262 | J92: 2450.74096 | K92: 612.68524 | L92: =+M92 -> 759.7294525 | M92: =+O92+O93+O94+O96+O97+O98+O95 -> 759.7294525 | N92: Inc. Pred. Doc | O92: =+J92*P92 -> 122.537048 | P92: 0.05
A93: 2022 | B93: 1273 | C93: Determina n. 60 del 20/04/2022 | D93: 919446153E | E93: servizio di supporto specialistico tecnico per le licenze Oracle | F93: 2022-05-06 | G93: 2023-05-05 | H93: 153171.31 | I93: =+H93*2/100 -> 3063.4262 | J93: =+I93*0.8 -> 2450.74096 | K93: =+I93*0.2 -> 612.68524 | N93: Coll. Inc. Pred. Doc | O93: =+J93*P93 -> 106.1986932 | P93: 0.0433333
A94: 2022 | B94: 1273 | C94: Determina n. 60 del 20/04/2022 | D94: 919446153E | E94: servizio di supporto specialistico tecnico per le licenze Oracle | F94: 2022-05-06 | G94: 2023-05-05 | H94: 153171.31 | I94: 3063.4262 | J94: 2450.74096 | K94: 612.68524 | N94: =+N93 -> Coll. Inc. Pred. Doc | O94: =+J94*P94 -> 106.1986932 | P94: 0.0433333
A95: 2022 | B95: 1273 | C95: Determina n. 60 del 20/04/2022 | D95: 919446153E | E95: servizio di supporto specialistico tecnico per le licenze Oracle | F95: 2022-05-06 | G95: 2023-05-05 | H95: 153171.31 | I95: =+H95*2/100 -> 3063.4262 | J95: =+I95*0.8 -> 2450.74096 | K95: =+I95*0.2 -> 612.68524 | N95: Coll Inc. Pred. Doc. | O95: =+J95*P95 -> 32.67646444 | P95: 0.0133333
A96: 2022 | B96: 1273 | C96: Determina n. 60 del 20/04/2022 | D96: 919446153E | E96: servizio di supporto specialistico tecnico per le licenze Oracle | F96: 2022-05-06 | G96: 2023-05-05 | H96: 153171.31 | I96: 3063.4262 | J96: 2450.74096 | K96: 612.68524 | N96: RUP Affidamento | O96: =+J96*P96 -> 245.074096 | P96: 0.1
A97: 2022 | B97: 1273 | C97: Determina n. 60 del 20/04/2022 | D97: 919446153E | E97: servizio di supporto specialistico tecnico per le licenze Oracle | F97: 2022-05-06 | G97: 2023-05-05 | H97: 153171.31 | I97: 3063.4262 | J97: 2450.74096 | K97: 612.68524 | N97: Coll RUP Aff. | O97: =+J97*P97 -> 73.5222288 | P97: 0.03
A98: 2022 | B98: 1273 | C98: Determina n. 60 del 20/04/2022 | D98: 919446153E | E98: servizio di supporto specialistico tecnico per le licenze Oracle | F98: 2022-05-06 | G98: 2023-05-05 | H98: 153171.31 | I98: 3063.4262 | J98: 2450.74096 | K98: 612.68524 | N98: =+N97 -> Coll RUP Aff. | O98: =+J98*P98 -> 73.5222288 | P98: 0.03
A99: 2022 | B99: 1273 | C99: 196 del 02/12/2022 | D99: Z0C38CAE63. | E99: VIDEOPROIETTORE PER L’ADEGUAMENTO DEL SISTEMA | H99: 22770 | I99: =+H99*2/100 -> 455.4 | J99: =+I99*0.8 -> 364.32 | K99: =+I99*0.2 -> 91.08 | L99: =+M99 -> 112.9392 | M99: =+O99+O100+O101+O102+O103 -> 112.9392 | N99: Inc. Pred. Doc | O99: =+J99*P99 -> 18.216 | P99: 0.05
A100: 2022 | B100: 1273 | C100: 196 del 02/12/2022 | D100: Z0C38CAE63. | E100: VIDEOPROIETTORE PER L’ADEGUAMENTO DEL SISTEMA | H100: 22770 | I100: 455.4 | J100: 364.32 | K100: 91.08 | N100: Coll. Inc. Pred. Doc | O100: =+J100*P100 -> 18.216 | P100: 0.05
A101: 2022 | B101: 1273 | C101: 196 del 02/12/2022 | D101: Z0C38CAE63. | E101: VIDEOPROIETTORE PER L’ADEGUAMENTO DEL SISTEMA | H101: 22770 | I101: 455.4 | J101: 364.32 | K101: 91.08 | N101: Coll. Inc. Pred. Doc | O101: =+J101*P101 -> 18.216 | P101: 0.05
A102: 2022 | B102: 1273 | C102: 196 del 02/12/2022 | D102: Z0C38CAE63. | E102: VIDEOPROIETTORE PER L’ADEGUAMENTO DEL SISTEMA | H102: 22770 | I102: 455.4 | J102: 364.32 | K102: 91.08 | N102: RUP Affidamento | O102: =+J102*P102 -> 36.432 | P102: 0.1
A103: 2022 | B103: 1273 | C103: 196 del 02/12/2022 | D103: Z0C38CAE63. | E103: VIDEOPROIETTORE PER L’ADEGUAMENTO DEL SISTEMA | H103: 22770 | I103: 455.4 | J103: 364.32 | K103: 91.08 | N103: Coll RUP Aff. | O103: =+J103*P103 -> 21.8592 | P103: 0.06
A104: 2022 | B104: 1273 | C104: 192 del 24/11/2022 | D104: 950346181B | E104: servizi biennali di manutenzione e assistenza tecnica per gli apparati di Centro Stella | H104: 100000 | I104: 2000 | J104: 1600 | K104: 400 | L104: =+M104 -> 496 | M104: =+O104+O105+O107+O108+O106 -> 496 | N104: Inc. Pred. Doc | O104: =+J104*P104 -> 80 | P104: 0.05
A105: 2022 | B105: 1273 | C105: 192 del 24/11/2022 | D105: 950346181B | E105: servizi biennali di manutenzione e assistenza tecnica per gli apparati di Centro Stella | H105: 100000 | I105: 2000 | J105: 1600 | K105: 400 | N105: Coll. Inc. Pred. Doc | O105: =+J105*P105 -> 80 | P105: 0.05
A106: 2022 | B106: 1273 | C106: 192 del 24/11/2022 | D106: 950346181B | E106: servizi biennali di manutenzione e assistenza tecnica per gli apparati di Centro Stella | H106: 100000 | I106: 2000 | J106: 1600 | K106: 400 | N106: Coll. Inc. Pred. Doc | O106: =+J106*P106 -> 80 | P106: 0.05
A107: 2022 | B107: 1273 | C107: 192 del 24/11/2022 | D107: 950346181B | E107: servizi biennali di manutenzione e assistenza tecnica per gli apparati di Centro Stella | H107: 100000 | I107: 2000 | J107: 1600 | K107: 400 | N107: RUP Affidamento | O107: =+J107*P107 -> 160 | P107: 0.1
A108: 2022 | B108: 1273 | C108: 192 del 24/11/2022 | D108: 950346181B | E108: servizi biennali di manutenzione e assistenza tecnica per gli apparati di Centro Stella | H108: 100000 | I108: 2000 | J108: 1600 | K108: 400 | N108: Coll RUP Aff. | O108: =+J108*P108 -> 96 | P108: 0.06
A109: 2022 | B109: 1273 | C109: 153 DEL 29/09/2022 | D109: Z5837F35F9 | E109: Acquisto licenze Red Hat JBoss EAP | H109: 34786.92 | I109: =+H109*2/100 -> 695.7384 | J109: =+I109*0.8 -> 556.59072 | K109: =+I109*0.2 -> 139.14768 | L109: =+M109 -> 77.9227008 | M109: =+O109+O110+O112+O111 -> 77.9227008 | N109: Inc. Pred. Doc | O109: =+J109*P109 -> 11.1318144 | P109: 0.02
A110: 2022 | B110: 1273 | C110: 153 DEL 29/09/2022 | D110: Z5837F35F9 | E110: Acquisto licenze Red Hat JBoss EAP | H110: 34786.92 | I110: 695.7384 | J110: 556.59072 | K110: 139.14768 | N110: Coll. Inc. Pred. Doc | O110: =+J110*P110 -> 5.5659072 | P110: 0.01
A111: 2022 | B111: 1273 | C111: 153 DEL 29/09/2022 | D111: Z5837F35F9 | E111: Acquisto licenze Red Hat JBoss EAP | H111: 34786.92 | I111: 695.7384 | J111: 556.59072 | K111: 139.14768 | N111: RUP Affidamento | O111: =+J111*P111 -> 44.5272576 | P111: 0.08
A112: 2022 | B112: 1273 | C112: 153 DEL 29/09/2022 | D112: Z5837F35F9 | E112: Acquisto licenze Red Hat JBoss EAP | H112: 34786.92 | I112: 695.7384 | J112: 556.59072 | K112: 139.14768 | N112: Coll RUP Aff. | O112: =+J112*P112 -> 16.6977216 | P112: 0.03
A113: 2022 | B113: 1273 | C113: 181 del 10/11/2022 | D113: Z02388337C | E113: servizio di Interconnessione tra Sistema Pubblico di Connettività | F113: 2023-01-01 | G113: 2023-12-31 | H113: 11400 | I113: 228 | J113: 182.4 | K113: 45.6 | L113: =+M113 -> 56.544 | M113: =+O113+O114+O115+O116 -> 56.544 | N113: Inc. Pred. Doc | O113: =+J113*P113 -> 9.12 | P113: 0.05
A114: 2022 | B114: 1273 | C114: 181 del 10/11/2022 | D114: Z02388337C | E114: servizio di Interconnessione tra Sistema Pubblico di Connettività | F114: 2023-01-01 | G114: 2023-12-31 | H114: 11400 | I114: 228 | J114: 182.4 | K114: 45.6 | N114: Coll. Inc. Pred. Doc | O114: =+J114*P114 -> 18.24 | P114: 0.1
A115: 2022 | B115: 1273 | C115: 181 del 10/11/2022 | D115: Z02388337C | E115: servizio di Interconnessione tra Sistema Pubblico di Connettività | F115: 2023-01-01 | G115: 2023-12-31 | H115: 11400 | I115: 228 | J115: 182.4 | K115: 45.6 | N115: RUP Affidamento | O115: =+J115*P115 -> 18.24 | P115: 0.1
A116: 2022 | B116: 1273 | C116: 181 del 10/11/2022 | D116: Z02388337C | E116: servizio di Interconnessione tra Sistema Pubblico di Connettività | F116: 2023-01-01 | G116: 2023-12-31 | H116: 11400 | I116: 228 | J116: 182.4 | K116: 45.6 | N116: Coll RUP Aff. | O116: =+J116*P116 -> 10.944 | P116: 0.06
A117: 2022 | B117: 1273 | C117: Determina n. 115 del 18/07/2022 | D117: 9327824BDD | E117: fornitura, in adesione alla Convenzione Consip Multibrand ed 4 lotto 5 - fornitura licenze Vmware | F117: 2022-08-01 | G117: 2025-07-31 | H117: 117380.33 | I117: =+H117*2/100 -> 2347.6066 | J117: =+I117*80/100 -> 1878.08528 | K117: =+I117*0.2 -> 469.52132 | L117: =+M117 -> 262.9319392 | M117: =+O117+O118+O119+O120 -> 262.9319392 | N117: Inc. Pred. Doc | O117: =+J117*P117 -> 37.5617056 | P117: 0.02
A118: 2022 | B118: 1273 | C118: Determina n. 115 del 18/07/2022 | D118: 9327824BDD | E118: fornitura, in adesione alla Convenzione Consip Multibrand ed 4 lotto 5 - fornitura licenze Vmware | F118: 2022-08-01 | G118: 2025-07-31 | H118: 117380.33 | I118: =+H118*2/100 -> 2347.6066 | J118: 1878.08528 | K118: 469.52132 | N118: Coll. Inc. Pred. Doc | O118: =+J118*P118 -> 18.7808528 | P118: 0.01
A119: 2022 | B119: 1273 | C119: Determina n. 115 del 18/07/2022 | D119: 9327824BDD | E119: fornitura, in adesione alla Convenzione Consip Multibrand ed 4 lotto 5 - fornitura licenze Vmware | F119: 2022-08-01 | G119: 2025-07-31 | H119: 117380.33 | I119: =+H119*2/100 -> 2347.6066 | J119: 1878.08528 | K119: 469.52132 | N119: RUP Affidamento | O119: =+J119*P119 -> 150.2468224 | P119: 0.08
A120: 2022 | B120: 1273 | C120: Determina n. 115 del 18/07/2022 | D120: 9327824BDD | E120: fornitura, in adesione alla Convenzione Consip Multibrand ed 4 lotto 5 - fornitura licenze Vmware | F120: 2022-08-01 | G120: 2025-07-31 | H120: 117380.33 | I120: =+H120*2/100 -> 2347.6066 | J120: 1878.08528 | K120: 469.52132 | N120: Coll. RUP Affidamento | O120: =+J120*P120 -> 56.3425584 | P120: 0.03
A121: 2022 | B121: 1273 | C121: Determina n. 150 del 26/09/2022 | D121: 941985456E | E121: PNRR “Piattaforma di business e web intelligence, | F121: da determinarsi (data di conclusione delle attività di set-up) | G121: 48 mesi di cui 12 solo garanzia | H121: 818178 | I121: =+H121*1.9/100 -> 15545.382 | J121: 12436.3 | K121: 3109.0764 | L121: =+M121 -> 1741.082 | M121: =+O121+O122+O123+O124 -> 1741.082 | N121: Inc. Pred. Doc | O121: =+J121*P121 -> 248.726 | P121: 0.02
A122: 2022 | B122: 1273 | C122: Determina n. 150 del 26/09/2022 | D122: 941985456E | E122: PNRR “Piattaforma di business e web intelligence, | F122: da determinarsi (data di conclusione delle attività di set-up) | G122: 48 mesi di cui 12 solo garanzia | H122: 818178 | I122: 15545.382 | J122: 12436.3 | K122: 3109.0764 | N122: Coll. Inc. Pred. Doc | O122: =+J122*P122 -> 124.363 | P122: 0.01
A123: 2022 | B123: 1273 | C123: Determina n. 150 del 26/09/2022 | D123: 941985456E | E123: PNRR “Piattaforma di business e web intelligence, | F123: da determinarsi (data di conclusione delle attività di set-up) | G123: 48 mesi di cui 12 solo garanzia | H123: 818178 | I123: 15545.382 | J123: 12436.3 | K123: 3109.0764 | N123: RUP Affidamento | O123: =+J123*P123 -> 994.904 | P123: 0.08
A124: 2022 | B124: 1273 | C124: Determina n. 150 del 26/09/2022 | D124: 941985456E | E124: PNRR “Piattaforma di business e web intelligence, | F124: da determinarsi (data di conclusione delle attività di set-up) | G124: 48 mesi di cui 12 solo garanzia | H124: 818178 | I124: 15545.382 | J124: 12436.3 | K124: 3109.0764 | N124: Coll. RUP Affidamento | O124: =+J124*P124 -> 373.089 | P124: 0.03
A125: 2022 | B125: 1273 | C125: Determina n. 148 del 22/09/2022 | D125: 941675580D | E125: “Informatizzazione del bilancio della Giustizia amministrativa” | F125: da determinarsi (data di conclusione delle attività di set-up) | G125: 48 mesi di cui 12 solo garanzia | H125: 1500713.8 | I125: 28513.5622 | J125: 22810.84976 | K125: 5702.71244 | L125: =+M125 -> 3193.518966 | M125: =+O125+O126+O127+O128 -> 3193.518966 | N125: Inc. Pred. Doc | O125: =+J125*P125 -> 456.2169952 | P125: 0.02
A126: 2022 | B126: 1273 | C126: Determina n. 148 del 22/09/2022 | D126: 941675580D | E126: “Informatizzazione del bilancio della Giustizia amministrativa” | F126: da determinarsi (data di conclusione delle attività di set-up) | G126: 48 mesi di cui 12 solo garanzia | H126: 1500713.8 | I126: 28513.5622 | J126: 22810.84976 | K126: 5702.71244 | N126: Coll. Inc. Pred. Doc | O126: =+J126*P126 -> 228.1084976 | P126: 0.01
A127: 2022 | B127: 1273 | C127: Determina n. 148 del 22/09/2022 | D127: 941675580D | E127: “Informatizzazione del bilancio della Giustizia amministrativa” | F127: da determinarsi (data di conclusione delle attività di set-up) | G127: 48 mesi di cui 12 solo garanzia | H127: 1500713.8 | I127: 28513.5622 | J127: 22810.84976 | K127: 5702.71244 | N127: RUP Affidamento | O127: =+J127*P127 -> 1824.867981 | P127: 0.08
A128: 2022 | B128: 1273 | C128: Determina n. 148 del 22/09/2022 | D128: 941675580D | E128: “Informatizzazione del bilancio della Giustizia amministrativa” | F128: da determinarsi (data di conclusione delle attività di set-up) | G128: 48 mesi di cui 12 solo garanzia | H128: 1500713.8 | I128: 28513.5622 | J128: 22810.84976 | K128: 5702.71244 | N128: Coll. RUP Affidamento | O128: =+J128*P128 -> 684.3254928 | P128: 0.03
A129: 2022 | B129: 4250 | C129: n. 154 del 05/10/2022 | D129: Z963805646 | E129: Acquisto n. 50 stampanti per la dotazione domestica dei magistrati | H129: 16000 | I129: =+H129*0.02 -> 320 | J129: =+I129*0.8 -> 256 | K129: =+I129*0.2 -> 64 | L129: =+M129 -> 79.36 | M129: =+O129+O130+O131+O132 -> 79.36 | N129: Inc. Pred. Doc | O129: =+J129*P129 -> 12.8 | P129: 0.05
A130: 2022 | B130: 4250 | C130: n. 154 del 05/10/2022 | D130: Z963805646 | E130: Acquisto n. 50 stampanti per la dotazione domestica dei magistrati | H130: 16000 | I130: =+H130*0.02 -> 320 | J130: =+I130*0.8 -> 256 | K130: =+I130*0.2 -> 64 | N130: Coll. Inc. Pred. Doc | O130: =+J130*P130 -> 25.6 | P130: 0.1
A131: 2022 | B131: 4250 | C131: n. 154 del 05/10/2022 | D131: Z963805646 | E131: Acquisto n. 50 stampanti per la dotazione domestica dei magistrati | H131: 16000 | I131: 320 | J131: 256 | K131: 64 | N131: RUP Affidamento | O131: =+J131*P131 -> 25.6 | P131: 0.1
A132: 2022 | B132: 4250 | C132: n. 154 del 05/10/2022 | D132: Z963805646 | E132: Acquisto n. 50 stampanti per la dotazione domestica dei magistrati | H132: 16000 | I132: 320 | J132: 256 | K132: 64 | N132: Coll RUP Aff. | O132: =+J132*P132 -> 15.36 | P132: 0.06
A133: 2022 | B133: 4250 | C133: 177 del 07/11/2022 | D133: 94800218CE | E133: affidamento della fornitura di n.150 notebook per personale di magistratura e amministrativo | H133: 84000 | I133: =+H133*0.02 -> 1680 | J133: 1344 | K133: 336 | L133: =+M133 -> 416.64 | M133: =+O133+O134+O135+O136 -> 416.64 | N133: Inc. Pred. Doc | O133: =+J133*P133 -> 67.2 | P133: 0.05
A134: 2022 | B134: 4250 | C134: 177 del 07/11/2022 | D134: 94800218CE | E134: affidamento della fornitura di n.150 notebook per personale di magistratura e amministrativo | H134: 84000 | I134: 1680 | J134: 1344 | K134: 336 | N134: Coll. Inc. Pred. Doc | O134: =+J134*P134 -> 134.4 | P134: 0.1
A135: 2022 | B135: 4250 | C135: 177 del 07/11/2022 | D135: 94800218CE | E135: affidamento della fornitura di n.150 notebook per personale di magistratura e amministrativo | H135: 84000 | I135: 1680 | J135: 1344 | K135: 336 | N135: RUP Affidamento | O135: =+J135*P135 -> 134.4 | P135: 0.1
A136: 2022 | B136: 4250 | C136: 177 del 07/11/2022 | D136: 94800218CE | E136: affidamento della fornitura di n.150 notebook per personale di magistratura e amministrativo | H136: 84000 | I136: 1680 | J136: 1344 | K136: 336 | N136: Coll RUP Aff. | O136: =+J136*P136 -> 80.64 | P136: 0.06
A137: 2022 | B137: 4250 | C137: 111 DEL 07/07/2022 | D137: ZA4371278C | E137: affidamento della fornitura di UPS per postazioni di lavoro | H137: 3000 | I137: 60 | J137: 48 | K137: 12 | L137: =+M137 -> 14.88 | M137: =+O137+O138+O139+O140 -> 14.88 | N137: Inc. Pred. Doc | O137: =+J137*P137 -> 2.4 | P137: 0.05
A138: 2022 | B138: 4250 | C138: 111 DEL 07/07/2022 | D138: ZA4371278C | E138: affidamento della fornitura di UPS per postazioni di lavoro | H138: 3000 | I138: 60 | J138: 48 | K138: 12 | N138: Coll. Inc. Pred. Doc | O138: =+J138*P138 -> 4.8 | P138: 0.1
A139: 2022 | B139: 4250 | C139: 111 DEL 07/07/2022 | D139: ZA4371278C | E139: affidamento della fornitura di UPS per postazioni di lavoro | H139: 3000 | I139: 60 | J139: 48 | K139: 12 | N139: RUP Affidamento | O139: =+J139*P139 -> 4.8 | P139: 0.1
A140: 2022 | B140: 4250 | C140: 111 DEL 07/07/2022 | D140: ZA4371278C | E140: affidamento della fornitura di UPS per postazioni di lavoro | H140: 3000 | I140: 60 | J140: 48 | K140: 12 | N140: Coll RUP Aff. | O140: =+J140*P140 -> 2.88 | P140: 0.06
A141: 2022 | B141: 4250 | C141: 123 del 22/07/2022 | D141: Z1C373F14D | E141: Acquisto di n. 14 basi di votazione per sala di Pompeo | H141: 8652 | I141: =+H141*2/100 -> 173.04 | J141: 138.432 | K141: 34.608 | L141: =+M141 -> 42.91392 | M141: =+O141+O142+O143+O144 -> 42.91392 | N141: Inc. Pred. Doc | O141: =+J141*P141 -> 6.9216 | P141: 0.05
A142: 2022 | B142: 4250 | C142: 123 del 22/07/2022 | D142: Z1C373F14D | E142: Acquisto di n. 14 basi di votazione per sala di Pompeo | H142: 8652 | I142: 173.04 | J142: 138.432 | K142: 34.608 | N142: Coll. Inc. Pred. Doc | O142: =+J142*P142 -> 13.8432 | P142: 0.1
A143: 2022 | B143: 4250 | C143: 123 del 22/07/2022 | D143: Z1C373F14D | E143: Acquisto di n. 14 basi di votazione per sala di Pompeo | H143: 8652 | I143: 173.04 | J143: 138.432 | K143: 34.608 | N143: RUP Affidamento | O143: =+J143*P143 -> 13.8432 | P143: 0.1
A144: 2022 | B144: 4250 | C144: 123 del 22/07/2022 | D144: Z1C373F14D | E144: Acquisto di n. 14 basi di votazione per sala di Pompeo | H144: 8652 | I144: 173.04 | J144: 138.432 | K144: 34.608 | N144: Coll RUP Aff. | O144: =+J144*P144 -> 8.30592 | P144: 0.06
A145: 2022 | B145: 4250 | C145: 133 del 05/08/2022 | D145: Z983768FAD | E145: Acquisto n. 100 PC desktop per uffici G.A | H145: 36260 | I145: 725.2 | J145: 580.16 | K145: 145.04 | L145: =+M145 -> 179.8496 | M145: =+O145+O146+O147+O148 -> 179.8496 | N145: Inc. Pred. Doc | O145: =+J145*P145 -> 29.008 | P145: 0.05
A146: 2022 | B146: 4250 | C146: 133 del 05/08/2022 | D146: Z983768FAD | E146: Acquisto n. 100 PC desktop per uffici G.A | H146: 36260 | I146: 725.2 | J146: 580.16 | K146: 145.04 | N146: Coll. Inc. Pred. Doc | O146: =+J146*P146 -> 58.016 | P146: 0.1
A147: 2022 | B147: 4250 | C147: 133 del 05/08/2022 | D147: Z983768FAD | E147: Acquisto n. 100 PC desktop per uffici G.A | H147: 36260 | I147: 725.2 | J147: 580.16 | K147: 145.04 | N147: RUP Affidamento | O147: =+J147*P147 -> 58.016 | P147: 0.1
A148: 2022 | B148: 4250 | C148: 133 del 05/08/2022 | D148: Z983768FAD | E148: Acquisto n. 100 PC desktop per uffici G.A | H148: 36260 | I148: 725.2 | J148: 580.16 | K148: 145.04 | N148: Coll RUP Aff. | O148: =+J148*P148 -> 34.8096 | P148: 0.06
A149: 2022 | B149: 4250 | C149: n. 134 del 10/08/2022 | D149: Z7B37722C6. | E149: PC Desktop e workstation/ lotto 1 di PC desktop Consip per i magistrati G.A. | H149: 28629 | I149: =+H149*0.02 -> 572.58 | J149: =+I149*80/100 -> 458.064 | K149: 114.516 | L149: =+M149 -> 64.12896 | M149: =+O149+O150+O151+O152 -> 64.12896 | N149: Inc. Pred. Doc | O149: =+J149*P149 -> 9.16128 | P149: 0.02
A150: 2022 | B150: 4250 | C150: n. 134 del 10/08/2022 | D150: Z7B37722C6. | E150: PC Desktop e workstation/ lotto 1 di PC desktop Consip per i magistrati G.A. | H150: 28629 | I150: =+H150*0.02 -> 572.58 | J150: =+I150*80/100 -> 458.064 | K150: =+I150*0.2 -> 114.516 | N150: Coll. Inc. Pred. Doc | O150: =+J150*P150 -> 4.58064 | P150: 0.01
A151: 2022 | B151: 4250 | C151: n. 134 del 10/08/2022 | D151: Z7B37722C6. | E151: PC Desktop e workstation/ lotto 1 di PC desktop Consip per i magistrati G.A. | H151: 28629 | I151: 572.58 | J151: 458.064 | K151: 114.516 | N151: RUP Affidamento | O151: =+J151*P151 -> 36.64512 | P151: 0.08
A152: 2022 | B152: 4250 | C152: n. 134 del 10/08/2022 | D152: Z7B37722C6. | E152: PC Desktop e workstation/ lotto 1 di PC desktop Consip per i magistrati G.A. | H152: 28629 | I152: 572.58 | J152: 458.064 | K152: 114.516 | N152: Coll. RUP Affidamento | O152: =+J152*P152 -> 13.74192 | P152: 0.03
A153: 2022 | B153: 4250 | C153: Determina n. 149 del 23/09/2022 | D153: 94185311A9 | E153: “Gestione siti e statistiche della Giustizia Amministrativa” | F153: da determinarsi (data di conclusione delle attività di set-up) | G153: 48 mesi di cui 12 solo garanzia | H153: 1918315 | I153: =+H153*1.9/100 -> 36447.985 | J153: =+I153*80/100 -> 29158.388 | K153: =+I153*0.2 -> 7289.597 | L153: =+M153 -> 4082.17432 | M153: =+O153+O154+O155+O156 -> 4082.17432 | N153: Inc. Pred. Doc | O153: =+J153*P153 -> 583.16776 | P153: 0.02
A154: 2022 | B154: 4250 | C154: Determina n. 149 del 23/09/2022 | D154: 94185311A9 | E154: “Gestione siti e statistiche della Giustizia Amministrativa” | F154: da determinarsi (data di conclusione delle attività di set-up) | G154: 48 mesi di cui 12 solo garanzia | H154: 1918315 | I154: 36447.985 | J154: 29158.388 | K154: 7289.597 | N154: Coll. Inc. Pred. Doc | O154: =+J154*P154 -> 291.58388 | P154: 0.01
A155: 2022 | B155: 4250 | C155: Determina n. 149 del 23/09/2022 | D155: 94185311A9 | E155: “Gestione siti e statistiche della Giustizia Amministrativa” | F155: da determinarsi (data di conclusione delle attività di set-up) | G155: 48 mesi di cui 12 solo garanzia | H155: 1918315 | I155: 36447.985 | J155: 29158.388 | K155: 7289.597 | N155: RUP Affidamento | O155: =+J155*P155 -> 2332.67104 | P155: 0.08
A156: 2022 | B156: 4250 | C156: Determina n. 149 del 23/09/2022 | D156: 94185311A9 | E156: “Gestione siti e statistiche della Giustizia Amministrativa” | F156: da determinarsi (data di conclusione delle attività di set-up) | G156: 48 mesi di cui 12 solo garanzia | H156: 1918315 | I156: 36447.985 | J156: 29158.388 | K156: 7289.597 | N156: Coll. RUP Affidamento | O156: =+J156*P156 -> 874.75164 | P156: 0.03
A157: 2020 | B157: 1295 | C157: 63 del 12/03/2020 | D157: 8234592848 | E157: Servizio di pulizia presso le sedi del CDS (solo esecuzione) | F157: 2021-04-01 | G157: 2021-12-31 | H157: 214000 | I157: 4280 | J157: 3424 | K157: 856 | L157: 513.6 | M157: =+O157+O158+O159+O160+O161+O162+O163+O164 -> 513.6 | N157: RUP esecuzione | O157: 239.68 | P157: 0.175 | S157: 2907.4 | T157: 0
A158: 2020 | B158: 1295 | C158: 63 del 12/03/2020 | D158: 8234592848 | E158: Servizio di pulizia presso le sedi del CDS (solo esecuzione) | F158: 2021-04-01 | G158: 2021-12-31 | H158: 214000 | I158: 4280 | J158: 3424 | K158: 856 | N158: Coll. RUP esecuzione | O158: 20.54 | P158: 0.015
A159: 2020 | B159: 1295 | C159: 63 del 12/03/2020 | D159: 8234592848 | E159: Servizio di pulizia presso le sedi del CDS (solo esecuzione) | F159: 2021-04-01 | G159: 2021-12-31 | H159: 214000 | I159: 4280 | J159: 3424 | K159: 856 | N159: Coll. RUP esecuzione | O159: 20.54 | P159: 0.015
A160: 2020 | B160: 1295 | C160: 63 del 12/03/2020 | D160: 8234592848 | E160: Servizio di pulizia presso le sedi del CDS (solo esecuzione) | F160: 2021-04-01 | G160: 2021-12-31 | H160: 214000 | I160: 4280 | J160: 3424 | K160: 856 | N160: DEC | O160: 136.96 | P160: 0.1
A161: 2020 | B161: 1295 | C161: 63 del 12/03/2020 | D161: 8234592848 | E161: Servizio di pulizia presso le sedi del CDS (solo esecuzione) | F161: 2021-04-01 | G161: 2021-12-31 | H161: 214000 | I161: 4280 | J161: 3424 | K161: 856 | N161: Coll. DEC | O161: 13.7 | P161: 0.01
A162: 2020 | B162: 1295 | C162: 63 del 12/03/2020 | D162: 8234592848 | E162: Servizio di pulizia presso le sedi del CDS (solo esecuzione) | F162: 2021-04-01 | G162: 2021-12-31 | H162: 214000 | I162: 4280 | J162: 3424 | K162: 856 | N162: Coll. DEC | O162: 13.7 | P162: 0.01
A163: 2020 | B163: 1295 | C163: 63 del 12/03/2020 | D163: 8234592848 | E163: Servizio di pulizia presso le sedi del CDS (solo esecuzione) | F163: 2021-04-01 | G163: 2021-12-31 | H163: 214000 | I163: 4280 | J163: 3424 | K163: 856 | N163: Inc. Ver. Conf | O163: 47.94 | P163: 0.035
A164: 2020 | B164: 1295 | C164: 63 del 12/03/2020 | D164: 8234592848 | E164: Servizio di pulizia presso le sedi del CDS (solo esecuzione) | F164: 2021-04-01 | G164: 2021-12-31 | H164: 214000 | I164: 4280 | J164: 3424 | K164: 856 | N164: Coll. Inc Ver. Conf. | O164: 20.54 | P164: 0.015
A165: 2021 | B165: 1295 | C165: 180 del 10/12/2021 | D165: 90208966DF | E165: Servizio di pulizia presso le sedi del CDS (procedura negoziata senza bando) (solo esecuzione) | F165: 2022-01-01 | G165: 31/06/2022 | H165: 138900 | I165: =+H165*0.02 -> 2778 | J165: =+(I165)*0.8 -> 2222.4 | K165: =+(I165)*0.2 -> 555.6 | L165: 955.63 | M165: =+O165+O166+O167+O168+O169+O170+O171+O172 -> 955.632 | N165: RUP esecuzione | O165: =+J165*P165 -> 400.032 | P165: 0.18 | S165: 1266.77 | T165: =+J165-M165-S165 -> -0.002
A166: 2021 | B166: 1295 | C166: 180 del 10/12/2021 | D166: 90208966DF | E166: Servizio di pulizia presso le sedi del CDS (procedura negoziata senza bando) (solo esecuzione) | F166: 2022-01-01 | G166: 31/06/2022 | H166: 138900 | I166: 2778 | J166: 2222.4 | K166: 555.6 | N166: Coll. RUP esecuzione | O166: =+J166*P166 -> 44.448 | P166: 0.02
A167: 2021 | B167: 1295 | C167: 180 del 10/12/2021 | D167: 90208966DF | E167: Servizio di pulizia presso le sedi del CDS (procedura negoziata senza bando) (solo esecuzione) | F167: 2022-01-01 | G167: 31/06/2022 | H167: 138900 | I167: 2778 | J167: 2222.4 | K167: 555.6 | N167: Coll. RUP esecuzione | O167: =+J167*P167 -> 44.448 | P167: 0.02
A168: 2021 | B168: 1295 | C168: 180 del 10/12/2021 | D168: 90208966DF | E168: Servizio di pulizia presso le sedi del CDS (procedura negoziata senza bando) (solo esecuzione) | F168: 2022-01-01 | G168: 31/06/2022 | H168: 138900 | I168: 2778 | J168: 2222.4 | K168: 555.6 | N168: DEC | O168: =+J168*P168 -> 255.576 | P168: 0.115
A169: 2021 | B169: 1295 | C169: 180 del 10/12/2021 | D169: 90208966DF | E169: Servizio di pulizia presso le sedi del CDS (procedura negoziata senza bando) (solo esecuzione) | F169: 2022-01-01 | G169: 31/06/2022 | H169: 138900 | I169: 2778 | J169: 2222.4 | K169: 555.6 | N169: Coll. DEC | O169: =+J169*P169 -> 50.004 | P169: 0.0225
A170: 2021 | B170: 1295 | C170: 180 del 10/12/2021 | D170: 90208966DF | E170: Servizio di pulizia presso le sedi del CDS (procedura negoziata senza bando) (solo esecuzione) | F170: 2022-01-01 | G170: 31/06/2022 | H170: 138900 | I170: 2778 | J170: 2222.4 | K170: 555.6 | N170: Coll. DEC | O170: =+J170*P170 -> 50.004 | P170: 0.0225
A171: 2021 | B171: 1295 | C171: 180 del 10/12/2021 | D171: 90208966DF | E171: Servizio di pulizia presso le sedi del CDS (procedura negoziata senza bando) (solo esecuzione) | F171: 2022-01-01 | G171: 31/06/2022 | H171: 138900 | I171: 2778 | J171: 2222.4 | K171: 555.6 | N171: Inc. Ver. Conf | O171: =+J171*P171 -> 77.784 | P171: 0.035
A172: 2021 | B172: 1295 | C172: 180 del 10/12/2021 | D172: 90208966DF | E172: Servizio di pulizia presso le sedi del CDS (procedura negoziata senza bando) (solo esecuzione) | F172: 2022-01-01 | G172: 31/06/2022 | H172: 138900 | I172: =+H172*0.02 -> 2778 | J172: =+(I172)*0.8 -> 2222.4 | K172: =+(I172)*0.2 -> 555.6 | N172: Coll. Inc Ver. Conf. | O172: =+J172*P172 -> 33.336 | P172: 0.015
A173: 2022 | B173: 1295 | C173: 10 del 20/01/2022 | D173: 906878454D | E173: Servizio di pulizia presso le sedi del CDS | F173: 2022-07-01 | G173: 2023-03-31 | H173: 214900 | I173: =+H173*0.02 -> 4298 | J173: =+I173*0.8 -> 3438.4 | K173: =+I173*0.2 -> 859.6 | L173: =+J173 -> 3438.4 | M173: =+O173+O174+O175+O176+O177+O178+O179+O180+O181+O182+O183+O184+O185+O186 -> 2664.76 | N173: Incaricato programm. | O173: =+J173*P173 -> 103.152 | P173: 0.03 | T173: =+J173-M173-S173 -> 773.64
A174: 2022 | B174: 1295 | C174: 10 del 20/01/2022 | D174: 906878454D | E174: Servizio di pulizia presso le sedi del CDS | F174: 2022-07-01 | G174: 2023-03-31 | H174: 214900 | I174: =+H174*0.02 -> 4298 | J174: =+I174*0.8 -> 3438.4 | K174: =+I174*0.2 -> 859.6 | N174: Coll. Inc. prog. | O174: =+J174*P174 -> 68.768 | P174: 0.02
A175: 2022 | B175: 1295 | C175: 10 del 20/01/2022 | D175: 906878454D | E175: Servizio di pulizia presso le sedi del CDS | F175: 2022-07-01 | G175: 2023-03-31 | H175: 214900 | I175: 4298 | J175: 3438.4 | K175: 859.6 | N175: Inc. Pred. Doc. | O175: =+J175*P175 -> 532.952 | P175: 0.155
A176: 2022 | B176: 1295 | C176: 10 del 20/01/2022 | D176: 906878454D | E176: Servizio di pulizia presso le sedi del CDS | F176: 2022-07-01 | G176: 2023-03-31 | H176: 214900 | I176: 4298 | J176: 3438.4 | K176: 859.6 | N176: Coll. Inc. Pred. | O176: =+J176*P176 -> 68.768 | P176: 0.02
A177: 2022 | B177: 1295 | C177: 10 del 20/01/2022 | D177: 906878454D | E177: Servizio di pulizia presso le sedi del CDS | F177: 2022-07-01 | G177: 2023-03-31 | H177: 214900 | I177: 4298 | J177: 3438.4 | K177: 859.6 | N177: RUP Affidamento | O177: =+J177*P177 -> 1203.44 | P177: 0.35
A178: 2022 | B178: 1295 | C178: 10 del 20/01/2022 | D178: 906878454D | E178: Servizio di pulizia presso le sedi del CDS | F178: 2022-07-01 | G178: 2023-03-31 | H178: 214900 | I178: 4298 | J178: 3438.4 | K178: 859.6 | N178: Coll. RUP Affidamento | O178: =+J178*P178 -> 171.92 | P178: 0.05
A179: 2022 | B179: 1295 | C179: 10 del 20/01/2022 | D179: 906878454D | E179: Servizio di pulizia presso le sedi del CDS | F179: 2022-07-01 | G179: 2023-03-31 | H179: 214900 | I179: 4298 | J179: 3438.4 | K179: 859.6 | N179: RUP esecuzione | O179: =+(J179*P179)/5*2 -> 240.688 | P179: 0.175
A180: 2022 | B180: 1295 | C180: 10 del 20/01/2022 | D180: 906878454D | E180: Servizio di pulizia presso le sedi del CDS | F180: 2022-07-01 | G180: 2023-03-31 | H180: 214900 | I180: 4298 | J180: 3438.4 | K180: 859.6 | N180: Coll. RUP esecuzione | O180: =+(J180*P180)/5*2 -> 20.6304 | P180: 0.015
A181: 2022 | B181: 1295 | C181: 10 del 20/01/2022 | D181: 906878454D | E181: Servizio di pulizia presso le sedi del CDS | F181: 2022-07-01 | G181: 2023-03-31 | H181: 214900 | I181: 4298 | J181: 3438.4 | K181: 859.6 | N181: Coll. RUP esecuzione | O181: =+(J181*P181)/5*2 -> 20.6304 | P181: 0.015
A182: 2022 | B182: 1295 | C182: 10 del 20/01/2022 | D182: 906878454D | E182: Servizio di pulizia presso le sedi del CDS | F182: 2022-07-01 | G182: 2023-03-31 | H182: 214900 | I182: 4298 | J182: 3438.4 | K182: 859.6 | N182: DEC | O182: =+(J182*P182)/5*2 -> 137.536 | P182: 0.1
A183: 2022 | B183: 1295 | C183: 10 del 20/01/2022 | D183: 906878454D | E183: Servizio di pulizia presso le sedi del CDS | F183: 2022-07-01 | G183: 2023-03-31 | H183: 214900 | I183: 4298 | J183: 3438.4 | K183: 859.6 | N183: Coll. DEC | O183: =+(J183*P183)/5*2 -> 13.7536 | P183: 0.01
A184: 2022 | B184: 1295 | C184: 10 del 20/01/2022 | D184: 906878454D | E184: Servizio di pulizia presso le sedi del CDS | F184: 2022-07-01 | G184: 2023-03-31 | H184: 214900 | I184: 4298 | J184: 3438.4 | K184: 859.6 | N184: Coll. DEC | O184: =+(J184*P184)/5*2 -> 13.7536 | P184: 0.01
A185: 2022 | B185: 1295 | C185: 10 del 20/01/2022 | D185: 906878454D | E185: Servizio di pulizia presso le sedi del CDS | F185: 2022-07-01 | G185: 2023-03-31 | H185: 214900 | I185: 4298 | J185: 3438.4 | K185: 859.6 | N185: Inc. Ver. Conf | O185: =+(J185*P185)/5*2 -> 48.1376 | P185: 0.035
A186: 2022 | B186: 1295 | C186: 10 del 20/01/2022 | D186: 906878454D | E186: Servizio di pulizia presso le sedi del CDS | F186: 2022-07-01 | G186: 2023-03-31 | H186: 214900 | I186: 4298 | J186: 3438.4 | K186: 859.6 | N186: Coll. Inc Ver. Conf. | O186: =+(J186*P186)/5*2 -> 20.6304 | P186: 0.015
A187: 2020 | B187: 3312 | C187: 89 del 05/05/2020 | D187: 84122085A5. | E187: Servizio di facchinaggio, trasloco e trasporto per le sedi del Consiglio di Stato” (solo esecuzione) | F187: 2021-01-16 | G187: 2022-07-15 | H187: 214000 | I187: 4280 | J187: 3424 | K187: 856 | L187: 570.67 | M187: =+O187+O188+O189+O190+O191+O192+O193+O194 -> 570.6677778 | N187: RUP esecuzione | O187: 266.3 | P187: 0.175 | S187: 2853.33 | T187: =+J187-M187-S187 -> 0.002222222222
A188: 2020 | B188: 3312 | C188: 89 del 05/05/2020 | D188: 84122085A5. | E188: Servizio di facchinaggio, trasloco e trasporto per le sedi del Consiglio di Stato” (solo esecuzione) | F188: 2021-01-16 | G188: 2022-07-15 | H188: 214000 | I188: 4280 | J188: 3424 | K188: 856 | N188: Coll. RUP esecuzione | O188: 22.83 | P188: 0.015
A189: 2020 | B189: 3312 | C189: 89 del 05/05/2020 | D189: 84122085A5. | E189: Servizio di facchinaggio, trasloco e trasporto per le sedi del Consiglio di Stato” (solo esecuzione) | F189: 2021-01-16 | G189: 2022-07-15 | H189: 214000 | I189: 4280 | J189: 3424 | K189: 856 | N189: Coll. RUP esecuzione | O189: 22.83 | P189: 0.015
A190: 2020 | B190: 3312 | C190: 89 del 05/05/2020 | D190: 84122085A5. | E190: Servizio di facchinaggio, trasloco e trasporto per le sedi del Consiglio di Stato” (solo esecuzione) | F190: 2021-01-16 | G190: 2022-07-15 | H190: 214000 | I190: 4280 | J190: 3424 | K190: 856 | N190: DEC | O190: =+(J191*P190)/9*4 -> 152.1777778 | P190: 0.1
A191: 2020 | B191: 3312 | C191: 89 del 05/05/2020 | D191: 84122085A5. | E191: Servizio di facchinaggio, trasloco e trasporto per le sedi del Consiglio di Stato” (solo esecuzione) | F191: 2021-01-16 | G191: 2022-07-15 | H191: 214000 | I191: 4280 | J191: 3424 | K191: 856 | N191: Coll. DEC | O191: 15.22 | P191: 0.01
A192: 2020 | B192: 3312 | C192: 89 del 05/05/2020 | D192: 84122085A5. | E192: Servizio di facchinaggio, trasloco e trasporto per le sedi del Consiglio di Stato” (solo esecuzione) | F192: 2021-01-16 | G192: 2022-07-15 | H192: 214000 | I192: 4280 | J192: 3424 | K192: 856 | N192: Coll. DEC | O192: 15.22 | P192: 0.01
A193: 2020 | B193: 3312 | C193: 89 del 05/05/2020 | D193: 84122085A5. | E193: Servizio di facchinaggio, trasloco e trasporto per le sedi del Consiglio di Stato” (solo esecuzione) | F193: 2021-01-16 | G193: 2022-07-15 | H193: 214000 | I193: 4280 | J193: 3424 | K193: 856 | N193: Inc. Ver. Conf | O193: 53.26 | P193: 0.035
A194: 2020 | B194: 3312 | C194: 89 del 05/05/2020 | D194: 84122085A5. | E194: Servizio di facchinaggio, trasloco e trasporto per le sedi del Consiglio di Stato” (solo esecuzione) | F194: 2021-01-16 | G194: 2022-07-15 | H194: 214000 | I194: 4280 | J194: 3424 | K194: 856 | N194: Coll. Inc Ver. Conf. | O194: 22.83 | P194: 0.015
A195: 2022 | B195: 3310 | C195: 14 del 31/10/2022 | D195: 90857527bc | E195: Servizio di facchinaggio, trasloco e trasporto per le sedi del Consiglio di Stato” | F195: 2022-07-16 | G195: 2024-01-15 | H195: 214900 | I195: =+H195*0.02 -> 4298 | J195: =+I195*0.8 -> 3438.4 | K195: =+I195*0.2 -> 859.6 | L195: =+J195 -> 3438.4 | M195: 2435.54 | N195: Incaricato programm. | O195: =+J195*P195 -> 103.152 | P195: 0.03 | T195: 1002.86
A196: 2022 | B196: 3310 | C196: 14 del 31/10/2022 | D196: 90857527bc | E196: Servizio di facchinaggio, trasloco e trasporto per le sedi del Consiglio di Stato” | F196: 2022-07-16 | G196: 2024-01-15 | H196: 214900 | I196: =+H196*0.02 -> 4298 | J196: =+I196*0.8 -> 3438.4 | K196: =+I196*0.2 -> 859.6 | N196: Coll. Inc. prog. | O196: =+J196*P196 -> 68.768 | P196: 0.02
A197: 2022 | B197: 3310 | C197: 14 del 31/10/2022 | D197: 90857527bc | E197: Servizio di facchinaggio, trasloco e trasporto per le sedi del Consiglio di Stato” | F197: 2022-07-16 | G197: 2024-01-15 | H197: 214900 | I197: 4298 | J197: 3438.4 | K197: 859.6 | N197: Inc. Pred. Doc. | O197: =+J197*P197 -> 266.476 | P197: 0.0775
A198: 2022 | B198: 3310 | C198: 14 del 31/10/2022 | D198: 90857527bc | E198: Servizio di facchinaggio, trasloco e trasporto per le sedi del Consiglio di Stato” | F198: 2022-07-16 | G198: 2024-01-15 | H198: 214900 | I198: =+H198*0.02 -> 4298 | J198: =+I198*0.8 -> 3438.4 | K198: =+I198*0.2 -> 859.6 | N198: Inc. Pred. Doc. | O198: =+J198*P198 -> 266.476 | P198: 0.0775
A199: 2022 | B199: 3310 | C199: 14 del 31/10/2022 | D199: 90857527bc | E199: Servizio di facchinaggio, trasloco e trasporto per le sedi del Consiglio di Stato” | F199: 2022-07-16 | G199: 2024-01-15 | H199: 214900 | I199: 4298 | J199: 3438.4 | K199: 859.6 | N199: Coll. Inc. Pred. | O199: =+J199*P199 -> 68.768 | P199: 0.02
A200: 2022 | B200: 3310 | C200: 14 del 31/10/2022 | D200: 90857527bc | E200: Servizio di facchinaggio, trasloco e trasporto per le sedi del Consiglio di Stato” | F200: 2022-07-16 | G200: 2024-01-15 | H200: 214900 | I200: 4298 | J200: 3438.4 | K200: 859.6 | N200: RUP Affidamento | O200: =+J200*P200 -> 1203.44 | P200: 0.35
... 615 more rows
